fUSD/lending_fUSD_20240429
["ID","MTS","AMOUNT","RATE_DAILY","PERIOD"]
[324869699,1714383081531,-500.0,0.00012876,2]
[324869700,1714383081541,-301.79992673,0.00012876,2]
[324869701,1714383081550,-500.0,0.00012876,2]
[324869702,1714383081560,-393.2545052,0.00012876,2]
[324869703,1714383081569,-500.0,0.00012876,2]
[324869704,1714383081578,-500.0,0.00012876,2]
[324869705,1714383081588,-500.0,0.00012876,2]
[324869706,1714383081597,-500.0,0.00012876,2]
[324869707,1714383081607,-500.0,0.00012876,2]
[324869708,1714383081616,-500.0,0.00012876,2]
[324869709,1714383081625,-500.0,0.00012876,2]
[324869710,1714383081634,-500.0,0.00012876,2]
[324869711,1714383081644,-500.0,0.00012876,2]
[324869712,1714383081654,-500.0,0.00012876,2]
[324869713,1714383081663,-500.0,0.00012876,2]
[324869714,1714383081673,-150.0,0.00012876,2]
[324869715,1714383081683,-500.0,0.00012876,2]
[324869716,1714383081692,-500.0,0.00012876,2]
[324869717,1714383081701,-500.0,0.00012876,2]
[324869718,1714383081711,-252.39930038,0.00012876,2]
[324869719,1714383081720,-500.0,0.00012876,2]
[324869720,1714383081840,-608.05,0.00012876,2]
[324869721,1714383081850,-406.13,0.00012876,2]
[324869722,1714383081859,-500.0,0.00012876,2]
[324869723,1714383081868,-500.0,0.00012876,2]
[324869724,1714383081878,-500.0,0.00012876,2]
[324869725,1714383081887,-500.0,0.00012876,2]
[324869726,1714383081897,-1908.2,0.00012876,2]
[324869727,1714383081906,-500.0,0.00012876,2]
[324869728,1714383081916,-500.0,0.00012876,2]
[324869729,1714383081928,-536.34,0.00012876,2]
[324869730,1714383081938,-500.0,0.00012876,2]
[324869731,1714383081948,-570.08,0.00012876,2]
[324869732,1714383081957,-3823.16,0.00012876,2]
[324869733,1714383081967,-387.9046049,0.00012876,2]
[324869734,1714383081976,-500.0,0.00012876,2]
[324869735,1714383081986,-588.33,0.00012876,2]
[324869736,1714383081996,-500.0,0.00012876,2]
[324869737,1714383082007,-718.39,0.00012876,2]
[324869738,1714383082017,-500.0,0.00012876,2]
[324869739,1714383082027,-500.0,0.00012876,2]
[324869740,1714383082036,-500.0,0.00012876,2]
[324869741,1714383082046,-500.0,0.00012876,2]
[324869742,1714383082056,-530.31,0.00012876,2]
[324869743,1714383082065,-500.0,0.00012876,2]
[324869744,1714383082075,-500.0,0.00012876,2]
[324869745,1714383082084,-500.0,0.00012876,2]
[324869746,1714383082093,-500.0,0.00012876,2]
[324869747,1714383082103,-9880.54,0.00012876,2]
[324869748,1714383082113,-216.72418923,0.00012876,2]
[324869749,1714383082123,-500.0,0.00012876,2]
[324869750,1714383082132,-500.0,0.00012876,2]
[324869751,1714383082142,-500.0,0.00012876,2]
[324869752,1714383082151,-500.0,0.00012876,2]
[324869753,1714383082160,-500.0,0.00012876,2]
[324869754,1714383082169,-500.0,0.00012876,2]
[324869755,1714383082179,-527.89,0.00012876,2]
[324869756,1714383082188,-231.29,0.00012876,2]
[324869757,1714383082198,-500.0,0.00012876,2]
[324869758,1714383082206,-500.0,0.00012876,2]
[324869759,1714383082216,-1457.29,0.00012876,2]
[324869760,1714383082225,-781.85,0.00012876,2]
[324869761,1714383082234,-604.98,0.00012876,2]
[324869762,1714383082243,-973.23,0.00012876,2]
[324869763,1714383082253,-1098.2,0.00012876,2]
[324869764,1714383082262,-414.32,0.00012876,2]
[324869765,1714383082271,-9775.91,0.00012876,2]
[324869766,1714383082280,-203.7,0.00012876,2]
[324869767,1714383082290,-935.78,0.00012876,2]
[324869768,1714383082299,-500.0,0.00012876,2]
[324869769,1714383082309,-500.0,0.00012876,2]
[324869770,1714383082319,-500.0,0.00012876,2]
[324869771,1714383082329,-625.92,0.00012876,2]
[324869772,1714383082338,-1868.4,0.00012876,2]
[324869773,1714383082348,-3931.33,0.00012876,2]
[324869774,1714383082358,-500.0,0.00012876,2]
[324869775,1714383082367,-505.96224499,0.00012876,2]
[324869776,1714383082377,-500.0,0.00012876,2]
[324869777,1714383082386,-500.0,0.00012876,2]
[324869778,1714383082395,-366.35857689,0.00012876,2]
[324869779,1714383082405,-500.0,0.00012876,2]
[324869780,1714383082415,-500.0,0.00012876,2]
[324869781,1714383082424,-527.83,0.00012876,2]
[324869782,1714383082434,-500.0,0.00012876,2]
[324869783,1714383082443,-500.0,0.00012876,2]
[324869784,1714383082453,-500.0,0.00012876,2]
[324869785,1714383082462,-500.0,0.00012876,2]
[324869786,1714383082472,-1355.1,0.00012876,2]
[324869787,1714383082482,-239.50959597,0.00012876,2]
[324869788,1714383082491,-909.97,0.00012876,2]
[324869789,1714383082503,-1359.97,0.00012876,2]
[324869790,1714383082512,-736.29,0.00012876,2]
[324869791,1714383082522,-500.0,0.00012876,2]
[324869792,1714383082531,-500.0,0.00012876,2]
[324869793,1714383082541,-500.0,0.00012876,2]
[324869794,1714383082550,-500.0,0.00012876,2]
[324869795,1714383082559,-1170.5,0.00012876,2]
[324869796,1714383082569,-1606.32,0.00012876,2]
[324869797,1714383082579,-500.0,0.00012876,2]
[324869798,1714383082588,-710.61,0.00012876,2]
[324869799,1714383082598,-332.2,0.00012876,2]
[324869800,1714383082607,-500.0,0.00012876,2]
[324869801,1714383082616,-500.0,0.00012876,2]
[324869802,1714383082625,-500.0,0.00012876,2]
[324869803,1714383082635,-500.0,0.00012876,2]
[324869804,1714383082652,-1502.6,0.00012876,2]
[324869805,1714383082669,-500.0,0.00012876,2]
[324869806,1714383082687,-488.18,0.00012876,2]
[324869807,1714383082705,-500.0,0.00012876,2]
[324869808,1714383082726,-500.0,0.00012876,2]
[324869809,1714383082742,-500.0,0.00012876,2]
[324869810,1714383082761,-2577.29,0.00012876,2]
[324869811,1714383082776,-500.0,0.00012876,2]
[324869812,1714383082793,-634.66,0.00012876,2]
[324869813,1714383082812,-831.39,0.00012876,2]
[324869814,1714383082832,-600.46,0.00012876,2]
[324869815,1714383082845,-759.67,0.00012876,2]
[324869816,1714383082861,-649.92,0.00012876,2]
[324869817,1714383082877,-500.0,0.00012876,2]
[324869818,1714383082895,-8340.65,0.00012876,2]
[324869819,1714383082908,-716.4,0.00012876,2]
[324869820,1714383082922,-1431.64,0.00012876,2]
[324869821,1714383082942,-1056.97,0.00012876,2]
[324869822,1714383082957,-771.03,0.00012876,2]
[324869823,1714383082972,-681.64,0.00012876,2]
[324869824,1714383082987,-500.0,0.00012876,2]
[324869825,1714383083001,-500.0,0.00012876,2]
[324869826,1714383083017,-1320.35,0.00012876,2]
[324869827,1714383083031,-500.0,0.00012876,2]
[324869828,1714383083046,-500.0,0.00012876,2]
[324869829,1714383083061,-3140.0,0.00012876,2]
[324869830,1714383083076,-1775.35,0.00012876,2]
[324869831,1714383083090,-500.0,0.00012876,2]
[324869832,1714383083106,-500.0,0.00012876,2]
[324869833,1714383083121,-854.83,0.00012876,2]
[324869834,1714383083136,-500.0,0.00012876,2]
[324869835,1714383083150,-500.0,0.00012876,2]
[324869836,1714383083164,-500.0,0.00012876,2]
[324869837,1714383083179,-500.0,0.00012876,2]
[324869838,1714383083193,-500.0,0.00012876,2]
[324869839,1714383083209,-518.2,0.00012876,2]
[324869840,1714383083225,-500.0,0.00012876,2]
[324869841,1714383083240,-500.0,0.00012876,2]
[324869842,1714383083255,-1642.24,0.00012876,2]
[324869843,1714383083270,-500.0,0.00012876,2]
[324869844,1714383083284,-517.02,0.00012876,2]
[324869845,1714383083294,-643.08,0.00012876,2]
[324869846,1714383083304,-500.0,0.00012876,2]
[324869847,1714383083313,-717.26,0.00012876,2]
[324869848,1714383083323,-500.0,0.00012876,2]
[324869849,1714383083333,-500.0,0.00012876,2]
[324869850,1714383083343,-500.0,0.00012876,2]
[324869851,1714383083352,-500.0,0.00012876,2]
[324869852,1714383083362,-500.0,0.00012876,2]
[324869853,1714383083372,-500.0,0.00012876,2]
[324869854,1714383083381,-1563.05,0.00012876,2]
[324869855,1714383083391,-1217.65,0.00012876,2]
[324869856,1714383083400,-500.0,0.00012876,2]
[324869857,1714383083410,-201.9374209,0.00012879,2]
[324869858,1714383083420,-2489.4604883,0.00012879,2]
[324869859,1714383083430,-1916.2354426,0.00012879,2]
[324869860,1714383083440,-500.0,0.00012887,2]
[324869861,1714383083450,-40301.22769543,0.00012888,2]
[324869862,1714383083460,-188.96003173,0.000129,2]
[324869863,1714383083469,-2151.59467475,0.000129,2]
[324869864,1714383083478,-150.0,0.000129,2]
[324869865,1714383083487,-170.89694307,0.000129,2]
[324869866,1714383083497,-7800.0,0.000129,4]
[324869867,1714383083508,-963.58457792,0.000129,2]
[324869868,1714383083517,-213.3959764,0.0001291,2]
[324869869,1714383083527,-151.0,0.0001291,2]
[324869870,1714383083536,-275.110425,0.0001291,2]
[324869871,1714383083546,-151.0,0.0001291,2]
[324869872,1714383083555,-429.027676,0.0001291,2]
[324869873,1714383083565,-429.027684,0.0001291,2]
[324869874,1714383083575,-2597.7826069,0.0001291,2]
[324869875,1714383083585,-500.0,0.00012917,2]
[324869876,1714383083595,-500.0,0.00012917,2]
[324869877,1714383083604,-500.0,0.00012917,2]
[324869878,1714383083614,-500.0,0.00012917,2]
[324869879,1714383083623,-500.0,0.00012917,2]
[324869880,1714383083633,-500.0,0.00012917,2]
[324869881,1714383083642,-500.0,0.00012917,2]
[324869882,1714383083651,-500.0,0.00012917,2]
[324869883,1714383083660,-500.0,0.00012917,2]
[324869884,1714383083670,-500.0,0.00012917,2]
[324869885,1714383083679,-500.0,0.00012917,2]
[324869886,1714383083689,-500.0,0.00012917,2]
[324869887,1714383084019,-500.0,0.00012917,2]
[324869888,1714383084054,-500.0,0.00012917,2]
[324869889,1714383084071,-500.0,0.00012917,2]
[324869890,1714383084085,-500.0,0.00012917,2]
[324869891,1714383084096,-500.0,0.00012917,2]
[324869892,1714383084105,-500.0,0.00012917,2]
[324869893,1714383084115,-500.0,0.00012917,2]
[324869894,1714383084124,-500.0,0.00012917,2]
[324869895,1714383084134,-500.0,0.00012917,2]
[324869896,1714383084143,-500.0,0.00012917,2]
[324869897,1714383084152,-500.0,0.00012917,2]
[324869898,1714383084161,-500.0,0.00012917,2]
[324869899,1714383084170,-500.0,0.00012917,2]
[324869900,1714383084178,-500.0,0.00012917,2]
[324869901,1714383084188,-549.26,0.00012917,2]
[324869902,1714383084197,-500.0,0.00012917,2]
[324869903,1714383084207,-500.0,0.00012917,2]
[324869904,1714383084216,-500.0,0.00012917,2]
[324869905,1714383084225,-500.0,0.00012917,2]
[324869906,1714383084235,-500.0,0.00012917,2]
[324869907,1714383084245,-500.0,0.00012917,2]
[324869908,1714383084256,-500.0,0.00012917,2]
[324869909,1714383084265,-500.0,0.00012917,2]
[324869910,1714383084274,-500.0,0.00012917,2]
[324869911,1714383084284,-500.0,0.00012917,2]
[324869912,1714383084292,-500.0,0.00012917,2]
[324869913,1714383084301,-500.0,0.00012917,2]
[324869914,1714383084310,-500.0,0.00012917,2]
[324869915,1714383084320,-196.9584569,0.00012918,2]
[324869916,1714383084328,-392.92,0.00012919,2]
[324869917,1714383084338,-500.0,0.00012919,2]
[324869918,1714383084347,-290.77,0.00012919,2]
[324869919,1714383084356,-488.63,0.00012919,2]
[324869920,1714383084366,-500.0,0.00012919,2]
[324869921,1714383084375,-500.0,0.00012919,2]
[324869922,1714383084384,-513.23,0.00012919,2]
[324869923,1714383084394,-1355.89,0.00012919,2]
[324869924,1714383084403,-500.0,0.00012919,2]
[324869925,1714383084412,-500.0,0.00012919,2]
[324869926,1714383084421,-500.0,0.00012919,2]
[324869927,1714383084430,-500.0,0.00012919,2]
[324869928,1714383084439,-500.0,0.00012919,2]
[324869929,1714383084449,-500.0,0.00012919,2]
[324869930,1714383084458,-500.0,0.00012919,2]
[324869931,1714383084469,-371.67411546,0.00012919,2]
[324869932,1714383084477,-540.81,0.00012919,2]
[324869933,1714383084486,-513.6123896,0.00012919,2]
[324869934,1714383084495,-500.0,0.00012919,2]
[324869935,1714383084504,-500.0,0.00012919,2]
[324869936,1714383084514,-500.0,0.00012919,2]
[324869937,1714383084523,-500.0,0.00012919,2]
[324869938,1714383084533,-500.0,0.00012919,2]
[324869939,1714383084542,-500.0,0.00012919,2]
[324869940,1714383084551,-500.0,0.00012919,2]
[324869941,1714383084560,-500.0,0.00012919,2]
[324869942,1714383084570,-500.0,0.00012919,2]
[324869943,1714383084579,-515.4894771,0.00012919,2]
[324869944,1714383084589,-500.0,0.00012919,2]
[324869945,1714383084598,-224.854532,0.00012977,2]
[324869946,1714383084608,-2706.1047255,0.00012977,2]
[324869947,1714383084618,-1996.1384654,0.00012977,2]
[324869948,1714383084627,-2106.37269282,0.0001298,2]
[324869949,1714383084638,-15040.45585391,0.0001298,2]
[324869950,1714383084648,-1183.22978773,0.0001298,2]
[324869951,1714383084658,-68355.94576221,0.0001298,2]
[324869952,1714383084674,-1396.0399734,0.0001298,2]
[324869953,1714383084752,-391.82705526,0.0001298,2]
[324869954,1714383084767,-3573.31,0.0001298,2]
[324869955,1714383084779,-625.0,0.0001298,2]
[324869956,1714383084790,-17590.60099035,0.0001298,2]
[324869957,1714383084810,-3236.78017023,0.0001298,2]
[324869958,1714383084822,-311.7686698,0.0001298,2]
[324869959,1714383084833,-412.05918344,0.0001298,2]
[324869960,1714383084845,-384.34999965,0.0001298,2]
[324869961,1714383084856,-28469.27125039,0.0001298,2]
[324869962,1714383084866,-3200.0,0.0001298,2]
[324869963,1714383085257,-155.58485218,0.00010957,2]
[324869964,1714383085267,-500.0,0.00010958,2]
[324869965,1714383085277,-500.0,0.00010958,2]
[324869966,1714383085286,-212.2967187,0.00010959,2]
[324869967,1714383085389,-136.4532813,0.00010959,2]
[324869968,1714383085398,-365.81,0.00012055,2]
[324869969,1714383085408,-197.77,0.00012192,2]
[324869970,1714383085417,-88.01533263,0.00012192,2]
[324869979,1714384023941,-360.96,8.412e-05,2]
[324869988,1714384231952,-316.0,9.527e-05,2]
[324869989,1714384231963,-165.27,9.528e-05,2]
[324869990,1714384231972,-636.12,9.958e-05,2]
[324869991,1714384231981,-174.41,9.958e-05,2]
[324869992,1714384231990,-283.42,9.958e-05,2]
[324869993,1714384232000,-2000.0,0.0001,2]
[324869994,1714384232010,-2560.0,0.0001,3]
[324869995,1714384232020,-180.57,0.00010164,2]
[324869996,1714384232029,-154.74,0.00010192,2]
[324869997,1714384232038,-435.43,0.00010197,2]
[324869998,1714384232047,-41.7977801,0.00010227,2]
[324869999,1714384233413,-205.0222199,0.00010227,2]
[324870000,1714384233423,-150.0,0.00010301,2]
[324870001,1714384233432,-17.86665271,0.00010318,2]
[324870002,1714384233445,-213.79334729,0.00010318,2]
[324870003,1714384233454,-312.09,0.00010318,2]
[324870004,1714384233464,-1183.26277783,0.00010318,2]
[324870005,1714384233475,-384.20256361,0.00010318,2]
[324870006,1714384233488,-593.73411253,0.00010318,2]
[324870007,1714384233499,-500.0,0.00010318,2]
[324870008,1714384233690,-539.91688144,0.00010318,2]
[324870009,1714384233702,-4300.0000015,0.00010318,2]
[324870039,1714384238035,-2949.36366309,0.00010318,2]
[324870041,1714384238046,-502.66808472,0.00010408,2]
[324870043,1714384238056,-389.35178471,0.00010408,2]
[324870044,1714384238065,-150.99,0.00010408,2]
[324870046,1714384238075,-759.3,0.00010408,2]
[324870048,1714384238084,-7516.56,0.00010431,2]
[324870049,1714384238094,-360.96,0.00010676,2]
[324870051,1714384238104,-268.33424577,0.00010956,2]
[324870052,1714384238114,-1211.30074394,0.00010956,2]
[324870053,1714384238124,-357.22427774,0.00010956,2]
[324870054,1714384238134,-184.01316538,0.00010957,2]
[324870055,1714384238145,-3082.06843787,0.00010957,2]
[324870056,1714384238155,-503.13614096,0.00010958,2]
[324870057,1714384238164,-505.95802443,0.00010958,2]
[324870058,1714384238174,-505.88186222,0.00010958,2]
[324870059,1714384238184,-503.57285455,0.00010958,2]
[324870060,1714384238194,-500.0,0.00010958,2]
[324870061,1714384238204,-500.0,0.00010958,2]
[324870062,1714384238214,-504.67833831,0.00010958,2]
[324870063,1714384238224,-496.64308653,0.00010958,2]
[324870064,1714384238240,-501.2543798,0.00010958,2]
[324870065,1714384238250,-500.46966524,0.00010958,2]
[324870066,1714384238260,-504.22620674,0.00010958,2]
[324870067,1714384238272,-505.25474672,0.00010958,2]
[324870068,1714384238283,-648.79972348,0.00010958,2]
[324870069,1714384238294,-503.48392211,0.00010958,2]
[324870070,1714384238304,-500.0,0.00010958,2]
[324870071,1714384238314,-500.63439109,0.00010958,2]
[324870072,1714384238324,-500.54817403,0.00010958,2]
[324870073,1714384238335,-436.26227899,0.00010958,2]
[324870074,1714384238344,-500.0,0.00010958,2]
[324870076,1714384238354,-500.64106942,0.00010958,2]
[324870078,1714384238363,-500.0,0.00010958,2]
[324870080,1714384238373,-500.0,0.00010958,2]
[324870082,1714384238383,-505.02921341,0.00010958,2]
[324870084,1714384238392,-500.81772275,0.00010958,2]
[324870086,1714384238401,-501.21768355,0.00010958,2]
[324870087,1714384238411,-500.0,0.00010958,2]
[324870088,1714384238421,-564.9056109,0.00010958,2]
[324870089,1714384238430,-501.98913943,0.00010958,2]
[324870091,1714384238440,-500.0,0.00010958,2]
[324870094,1714384238450,-501.20823211,0.00010958,2]
[324870096,1714384238459,-500.59058874,0.00010958,2]
[324870098,1714384238468,-544.75566143,0.00010958,2]
[324870100,1714384238478,-452.65298705,0.00010958,2]
[324870101,1714384238487,-352.55460564,0.00010958,2]
[324870104,1714384238497,-500.0,0.00010958,2]
[324870106,1714384238507,-539.21699589,0.00010958,2]
[324870109,1714384238516,-333.92,0.00010958,2]
[324870112,1714384238527,-500.0,0.00010958,2]
[324870115,1714384238538,-500.0,0.00010958,2]
[324870118,1714384238547,-500.0,0.00010958,2]
[324870121,1714384238557,-500.0,0.00010958,2]
[324870124,1714384238566,-393.54732517,0.00010958,2]
[324870127,1714384238576,-500.0,0.00010958,2]
[324870130,1714384238586,-500.0,0.00010958,2]
[324870133,1714384238596,-500.0,0.00010958,2]
[324870135,1714384238609,-500.0,0.00010958,2]
[324870137,1714384238619,-621.88835066,0.00010958,2]
[324870139,1714384238629,-500.0,0.00010958,2]
[324870141,1714384238639,-500.0,0.00010958,2]
[324870143,1714384238648,-363.28,0.00010958,2]
[324870145,1714384238658,-607.81647966,0.00010958,2]
[324870147,1714384238667,-500.0,0.00010958,2]
[324870149,1714384238677,-500.0,0.00010958,2]
[324870151,1714384238687,-500.0,0.00010958,2]
[324870153,1714384238696,-574.0,0.00010958,2]
[324870155,1714384238706,-500.0,0.00010958,2]
[324870157,1714384238715,-528.62,0.00010958,2]
[324870159,1714384238725,-500.0,0.00010958,2]
[324870161,1714384238734,-500.69808635,0.00010958,2]
[324870163,1714384238744,-500.0,0.00010958,2]
[324870165,1714384238753,-500.0,0.00010958,2]
[324870167,1714384238762,-999.99,0.00010958,2]
[324870170,1714384238774,-500.0,0.00010958,2]
[324870172,1714384238784,-500.0,0.00010958,2]
[324870174,1714384238793,-593.89820622,0.00010958,2]
[324870176,1714384238803,-500.0,0.00010958,2]
[324870178,1714384238812,-500.0,0.00010958,2]
[324870179,1714384238821,-500.0,0.00010958,2]
[324870181,1714384238831,-500.0,0.00010958,2]
[324870183,1714384238841,-500.0,0.00010958,2]
[324870185,1714384238850,-500.0,0.00010958,2]
[324870187,1714384238860,-500.0,0.00010958,2]
[324870189,1714384238869,-404.78,0.00010958,2]
[324870191,1714384238879,-500.0,0.00010958,2]
[324870193,1714384238888,-506.53088314,0.00010958,2]
[324870195,1714384238897,-500.0,0.00010958,2]
[324870197,1714384238907,-500.0,0.00010958,2]
[324870199,1714384238916,-500.0,0.00010958,2]
[324870202,1714384238926,-500.0,0.00010958,2]
[324870204,1714384238936,-500.0,0.00010958,2]
[324870206,1714384238945,-500.0,0.00010958,2]
[324870208,1714384238954,-543.64530697,0.00010958,2]
[324870209,1714384238964,-500.0,0.00010958,2]
[324870210,1714384238973,-500.0,0.00010958,2]
[324870211,1714384238983,-500.0,0.00010958,2]
[324870212,1714384238993,-500.0,0.00010958,2]
[324870213,1714384239003,-500.0,0.00010958,2]
[324870214,1714384239012,-636.19352452,0.00010958,2]
[324870215,1714384239022,-580.10868977,0.00010958,2]
[324870216,1714384239031,-500.0,0.00010958,2]
[324870217,1714384239041,-500.0,0.00010958,2]
[324870218,1714384239051,-503.67878338,0.00010958,2]
[324870219,1714384239060,-500.0,0.00010958,2]
[324870220,1714384239071,-500.0,0.00010958,2]
[324870222,1714384239081,-648.5,0.00010958,2]
[324870224,1714384239091,-500.0,0.00010958,2]
[324870226,1714384239100,-481.9429333,0.00010958,2]
[324870227,1714384239110,-500.0,0.00010958,2]
[324870228,1714384239119,-500.0,0.00010958,2]
[324870229,1714384239128,-504.0606392,0.00010958,2]
[324870230,1714384239138,-500.0,0.00010958,2]
[324870231,1714384239147,-597.98,0.00010958,2]
[324870232,1714384239156,-1272.13,0.00010958,2]
[324870233,1714384239166,-500.0,0.00010958,2]
[324870234,1714384239175,-500.0,0.00010958,2]
[324870235,1714384239184,-500.0,0.00010958,2]
[324870236,1714384239194,-500.0,0.00010958,2]
[324870237,1714384239203,-500.0,0.00010958,2]
[324870238,1714384239212,-500.0,0.00010958,2]
[324870239,1714384239222,-500.0,0.00010958,2]
[324870240,1714384239233,-500.0,0.00010958,2]
[324870241,1714384239243,-293.83,0.00010958,2]
[324870242,1714384239252,-500.0,0.00010958,2]
[324870243,1714384239262,-500.0,0.00010958,2]
[324870244,1714384239273,-500.0,0.00010958,2]
[324870245,1714384239283,-500.0,0.00010958,2]
[324870246,1714384239292,-500.0,0.00010958,2]
[324870247,1714384239302,-500.0,0.00010958,2]
[324870248,1714384239313,-371.78,0.00010958,2]
[324870249,1714384239324,-507.64225717,0.00010958,2]
[324870250,1714384239333,-500.0,0.00010958,2]
[324870251,1714384239343,-500.0,0.00010958,2]
[324870252,1714384239352,-500.0,0.00010958,2]
[324870253,1714384239362,-500.0,0.00010958,2]
[324870254,1714384239371,-502.57883637,0.00010958,2]
[324870255,1714384239382,-500.0,0.00010958,2]
[324870256,1714384239391,-500.0,0.00010958,2]
[324870257,1714384239402,-500.0,0.00010958,2]
[324870258,1714384239411,-500.0,0.00010958,2]
[324870259,1714384239421,-505.63415804,0.00010958,2]
[324870260,1714384239430,-292.47891777,0.00010958,2]
[324870261,1714384239495,-207.18572161,0.00010958,2]
[324870262,1714384239506,-500.0,0.00010958,2]
[324870263,1714384239516,-204.75,0.00010958,2]
[324870264,1714384239527,-559.75,0.00010958,2]
[324870265,1714384239537,-500.0,0.00010958,2]
[324870266,1714384239547,-500.0,0.00010958,2]
[324870267,1714384239557,-500.0,0.00010958,2]
[324870268,1714384239566,-500.0,0.00010958,2]
[324870269,1714384239576,-500.0,0.00010958,2]
[324870270,1714384239586,-500.0,0.00010958,2]
[324870271,1714384239596,-500.0,0.00010958,2]
[324870272,1714384239605,-500.0,0.00010958,2]
[324870273,1714384239615,-573.1,0.00010958,2]
[324870274,1714384239624,-565.24,0.00010958,2]
[324870275,1714384239633,-500.0,0.00010958,2]
[324870276,1714384239642,-500.0,0.00010958,2]
[324870277,1714384239652,-201.3,0.00010958,2]
[324870278,1714384239661,-502.08831626,0.00010958,2]
[324870279,1714384239671,-500.0,0.00010958,2]
[324870280,1714384239680,-500.0,0.00010958,2]
[324870281,1714384239690,-530.13,0.00010958,2]
[324870282,1714384239699,-500.0,0.00010958,2]
[324870283,1714384239708,-500.0,0.00010958,2]
[324870284,1714384239718,-502.19386948,0.00010958,2]
[324870285,1714384239728,-500.0,0.00010958,2]
[324870286,1714384239737,-500.0,0.00010958,2]
[324870287,1714384239747,-500.0,0.00010958,2]
[324870288,1714384239756,-500.0,0.00010958,2]
[324870290,1714384239768,-500.0,0.00010958,2]
[324870291,1714384239778,-500.0,0.00010958,2]
[324870292,1714384239787,-500.0,0.00010958,2]
[324870293,1714384240086,-500.0,0.00010958,2]
[324870294,1714384240096,-500.0,0.00010958,2]
[324870295,1714384240105,-500.0,0.00010958,2]
[324870296,1714384240115,-500.0,0.00010958,2]
[324870297,1714384240124,-500.0,0.00010958,2]
[324870298,1714384240134,-502.83921001,0.00010958,2]
[324870299,1714384240143,-500.0,0.00010958,2]
[324870300,1714384240154,-500.0,0.00010958,2]
[324870301,1714384240163,-500.0,0.00010958,2]
[324870302,1714384240173,-500.0,0.00010958,2]
[324870303,1714384240182,-500.0,0.00010958,2]
[324870304,1714384240192,-500.0,0.00010958,2]
[324870305,1714384240201,-500.0,0.00010958,2]
[324870306,1714384240210,-500.0,0.00010958,2]
[324870307,1714384240220,-502.81564834,0.00010958,2]
[324870308,1714384240231,-500.0,0.00010958,2]
[324870309,1714384240242,-500.0,0.00010958,2]
[324870310,1714384240251,-493.27,0.00010958,2]
[324870311,1714384240261,-500.0,0.00010958,2]
[324870312,1714384240272,-500.0,0.00010958,2]
[324870313,1714384240281,-500.0,0.00010958,2]
[324870314,1714384240290,-500.0,0.00010958,2]
[324870315,1714384240300,-500.0,0.00010958,2]
[324870316,1714384240310,-500.0,0.00010958,2]
[324870317,1714384240319,-556.41772285,0.00010958,2]
[324870318,1714384240328,-500.0,0.00010958,2]
[324870319,1714384240338,-500.0,0.00010958,2]
[324870320,1714384240347,-500.0,0.00010958,2]
[324870321,1714384240356,-500.0,0.00010958,2]
[324870322,1714384240366,-504.6,0.00010958,2]
[324870323,1714384240375,-500.0,0.00010958,2]